fUST/lending_fUST_20240628
["ID","MTS","AMOUNT","RATE_DAILY","PERIOD"]
[330509781,1719538239619,-2505.007407,0.00040822,7]
[330509783,1719538239630,-2505.007407,0.00040822,7]
[330509785,1719538239640,-151.0,0.00040822,7]
[330509787,1719538239649,-151.0,0.00040822,7]
[330509789,1719538239659,-205.8574448,0.00040959,2]
[330509791,1719538239669,-205.8574448,0.00040959,2]
[330509792,1719538239678,-413.5117273,0.00040959,2]
[330509794,1719538239689,-827.16,0.00040975,3]
[330509796,1719538239699,-551.43,0.00040985,3]
[330509798,1719538239709,-275.72,0.00040985,3]
[330509800,1719538239720,-151.0,0.00040993,7]
[330509802,1719538239731,-399.248694,0.00040995,7]
[330509804,1719538239742,-399.248694,0.00040995,7]
[330509806,1719538239753,-151.0,0.00040995,7]
[330509808,1719538239763,-151.0,0.00040995,7]
[330509810,1719538239774,-5238.30829671,0.00040995,2]
[330509812,1719538239784,-500.0,0.00041,35]
[330509814,1719538239794,-500.0,0.00041,35]
[330509816,1719538239805,-3256.095546,0.00041,8]
[330509818,1719538239817,-151.0,0.00041,7]
[330509820,1719538239827,-156.5650573,0.00041027,30]
[330509822,1719538239836,-2615.75949602,0.00041095,7]
[330509824,1719538239846,-8673.21129169,0.00041095,7]
[330509825,1719538239856,-160.0,0.00041095,5]
[330509826,1719538239867,-1000.0,0.00041095,3]
[330509827,1719538239877,-153.50287581,0.00041176,30]
[330509828,1719538239887,-153.0,0.0004126,2]
[330509829,1719538239897,-153.0,0.0004126,2]
[330509830,1719538239907,-153.0,0.0004126,2]
[330509831,1719538239918,-2268.55,0.00041368,120]
[330509832,1719538239928,-151.0,0.00041369,14]
[330509833,1719538239938,-3000.0,0.00041369,120]
[330509834,1719538239948,-205.8574448,0.0004137,2]
[330509835,1719538239958,-205.8574448,0.0004137,2]
[330509836,1719538239968,-205.8574448,0.0004137,2]
[330509837,1719538239978,-205.8574448,0.0004137,2]
[330509838,1719538239988,-205.8574448,0.0004137,2]
[330509839,1719538239998,-205.8574448,0.0004137,2]
[330509840,1719538240008,-205.8574448,0.0004137,2]
[330509841,1719538240018,-156.5650573,0.00041543,30]
[330509842,1719538240030,-176.03735811,0.00041589,4]
[330509843,1719538240039,-3574.24379854,0.00041633,4]
[330509844,1719538240050,-2268.55,0.00041642,120]
[330509845,1719538240060,-500.72,0.00041643,120]
[330509846,1719538240070,-500.0,0.00041643,21]
[330509847,1719538240080,-401.4718588,0.00041644,2]
[330509848,1719538240090,-306.0,0.00041644,2]
[330509849,1719538240100,-153.0,0.00041644,2]
[330509850,1719538240110,-153.0,0.00041644,2]
[330509851,1719538240120,-151.733766,0.00041644,14]
[330509853,1719538240130,-156.5650573,0.00041755,30]
[330509855,1719538240140,-266.8,0.00041874,31]
[330509856,1719538240151,-2268.55,0.00041916,120]
[330509857,1719538240161,-2505.007407,0.00041917,14]
[330509858,1719538240171,-2505.007407,0.00041917,14]
[330509859,1719538240181,-278.514426,0.00041917,14]
[330509860,1719538240191,-1488.31095733,0.00041917,120]
[330509861,1719538240201,-154.82195475,0.00041929,4]
[330509862,1719538240211,-500.0,0.00042,120]
[330509863,1719538240220,-151.194,0.0004212,2]
[330509864,1719538240230,-250.0,0.0004212,2]
[330509865,1719538240239,-2205.72,0.00042182,3]
[330509866,1719538240249,-2268.55,0.0004219,120]
[330509867,1719538240259,-500.72,0.00042191,120]
[330509868,1719538240270,-276.7,0.00042251,31]
[330509869,1719538240279,-1102.86,0.00042355,3]
[330509870,1719538240290,-551.44,0.00042355,3]
[330509871,1719538240300,-156.56505732,0.00042368,30]
[330509872,1719538240310,-2268.55,0.00042464,120]
[330509873,1719538240320,-276.7,0.00042627,31]
[330509874,1719538240330,-399.248694,0.00042627,14]
[330509875,1719538240340,-399.248694,0.00042627,14]
[330509876,1719538240351,-151.0,0.00042627,14]
[330509877,1719538240361,-151.0,0.00042627,14]
[330509878,1719538240371,-528.19460219,0.00042629,4]
[330509879,1719538240381,-150.83408251,0.00042724,2]
[330509880,1719538240391,-2268.55,0.00042738,120]
[330509881,1719538240401,-500.72,0.00042739,120]
[330509882,1719538240411,-736.82898711,0.00043,2]
[330509883,1719538240420,-4400.0,0.00043,60]
[330509884,1719538240431,-1982.59,0.00043,120]
[330509885,1719538240440,-500.0,0.00043,2]
[330509886,1719538240450,-500.0,0.00043,2]
[330509887,1719538240460,-500.0,0.00043,2]
[330509888,1719538240470,-151.0,0.00043,14]
[330509889,1719538240480,-276.7,0.00043003,31]
[330509890,1719538240489,-2268.55,0.00043012,120]
[330509891,1719538240499,-333.8912721,0.00043014,2]
[330509892,1719538240508,-2268.55,0.00043286,120]
[330509893,1719538240517,-224.4556943,0.00043287,4]
[330509894,1719538240527,-500.72,0.00043287,120]
[330509895,1719538240536,-153.8908962,0.00043288,2]
[330509896,1719538240548,-205.8574448,0.00043288,2]
[330509897,1719538240558,-153.0,0.00043288,2]
[330509898,1719538240568,-205.8574448,0.00043288,2]
[330509899,1719538240578,-205.8574448,0.00043288,2]
[330509900,1719538240588,-153.0,0.00043288,2]
[330509901,1719538240598,-205.8574448,0.00043288,2]
[330509902,1719538240607,-205.8574448,0.00043288,2]
[330509903,1719538240617,-205.8574448,0.00043288,2]
[330509904,1719538240627,-153.0,0.00043288,2]
[330509905,1719538240638,-205.8574448,0.00043288,2]
[330509906,1719538240648,-153.6636659,0.00043288,2]
[330509907,1719538240658,-153.0,0.00043288,2]
[330509908,1719538240667,-153.0,0.00043288,2]
[330509909,1719538240677,-153.0,0.00043288,2]
[330509910,1719538240687,-153.62567065,0.00043373,30]
[330509911,1719538240697,-276.7,0.0004338,31]
[330509912,1719538240706,-152.0,0.0004338,31]
[330509913,1719538240716,-2268.55,0.0004356,120]
[330509914,1719538240726,-153.50287589,0.00043574,30]
[330509915,1719538240735,-195.71,0.000436,36]
[330509916,1719538240744,-195.71,0.000436,36]
[330509918,1719538240754,-984.69980857,0.00043725,2]
[330509920,1719538240763,-772.0,0.0004375,2]
[330509921,1719538240773,-276.7,0.00043756,31]
[330509924,1719538240782,-152.0,0.00043756,31]
[330509925,1719538240792,-297.0418,0.000438,2]
[330509926,1719538240801,-3574.24379854,0.00043815,5]
[330509927,1719538240811,-2505.007407,0.00043825,14]
[330509928,1719538240820,-2505.007407,0.00043825,14]
[330509929,1719538240829,-3574.24379854,0.00043825,5]
[330509930,1719538240839,-2268.55,0.00043834,120]
[330509931,1719538240848,-500.72,0.00043835,120]
[330509932,1719538240857,-500.0,0.00043835,30]
[330509933,1719538240867,-446.02374784,0.00043835,8]
[330509934,1719538240876,-2505.007407,0.00043835,14]
[330509935,1719538240886,-2505.007407,0.00043835,14]
[330509936,1719538240895,-2763.21,0.00043835,120]
[330509937,1719538240904,-2763.21,0.00043835,120]
[330509938,1719538240914,-2763.21,0.00043835,120]
[330509939,1719538240923,-2763.21,0.00043835,120]
[330509940,1719538240933,-2763.21,0.00043835,120]
[330509941,1719538240942,-2763.21,0.00043835,120]
[330509942,1719538240952,-2763.21,0.00043835,120]
[330509943,1719538240961,-2763.21,0.00043835,120]
[330509944,1719538240970,-399.248694,0.00043835,14]
[330509945,1719538240980,-399.248694,0.00043835,14]
[330509946,1719538241089,-399.248694,0.00043835,14]
[330509947,1719538241099,-399.248694,0.00043835,14]
[330509948,1719538241109,-151.0,0.00043835,14]
[330509949,1719538241118,-151.0,0.00043835,14]
[330509950,1719538241128,-151.0,0.00043835,14]
[330509951,1719538241137,-151.0,0.00043835,14]
[330509952,1719538241147,-500.0,0.00043835,120]
[330509953,1719538241156,-153.0,0.00043836,2]
[330509954,1719538241165,-533.21,0.00044,120]
[330509955,1719538241174,-154.82195475,0.00044,4]
[330509956,1719538241183,-1000.0,0.00044,120]
[330509957,1719538241192,-2000.0,0.00044008,2]
[330509958,1719538241201,-3574.24379854,0.00044089,5]
[330509959,1719538241210,-3574.24379854,0.00044098,5]
[330509960,1719538241219,-2763.21,0.00044098,120]
[330509961,1719538241229,-2505.007407,0.00044099,14]
[330509962,1719538241238,-2505.007407,0.00044099,14]
[330509963,1719538241247,-41432.0737232,0.00044099,5]
[330509964,1719538241261,-5033.0956578,0.00044099,5]
[330509965,1719538241271,-151.0,0.00044108,7]
[330509966,1719538241281,-2505.007407,0.00044108,14]
[330509967,1719538241290,-2505.007407,0.00044108,14]
[330509968,1719538241301,-2763.21,0.00044108,120]
[330509969,1719538241310,-2763.21,0.00044108,120]
[330509970,1719538241320,-2763.21,0.00044108,120]
[330509971,1719538241328,-2763.21,0.00044108,120]
[330509972,1719538241338,-2763.21,0.00044108,120]
[330509973,1719538241347,-1611.83343902,0.00044108,120]
[330509974,1719538241359,-1151.37656098,0.00044108,120]
[330509975,1719538241368,-2763.21,0.00044108,120]
[330509976,1719538241377,-2763.21,0.00044108,120]
[330509977,1719538241386,-2763.21,0.00044108,120]
[330509978,1719538241396,-2763.21,0.00044108,120]
[330509979,1719538241405,-2763.21,0.00044108,120]
[330509980,1719538241414,-2763.21,0.00044108,120]
[330509981,1719538241424,-2763.21,0.00044108,120]
[330509982,1719538241433,-2763.21,0.00044108,120]
[330509983,1719538241443,-2763.28939548,0.00044108,120]
[330509984,1719538241452,-399.248694,0.00044108,14]
[330509985,1719538241461,-399.248694,0.00044108,14]
[330509986,1719538241471,-151.0,0.00044108,14]
[330509987,1719538241480,-151.0,0.00044108,14]
[330509988,1719538241490,-2268.55,0.00044108,120]
[330509989,1719538241499,-500.0,0.00044109,120]
[330509990,1719538241509,-500.0,0.00044109,120]
[330509991,1719538241519,-500.0,0.00044109,120]
[330509992,1719538241528,-518.97,0.00044109,120]
[330509993,1719538241537,-500.0,0.00044109,120]
[330509994,1719538241549,-500.0,0.00044109,2]
[330509995,1719538241559,-500.0,0.00044109,120]
[330509996,1719538241572,-500.0,0.00044109,120]
[330509997,1719538241581,-510.29,0.00044109,120]
[330509998,1719538241592,-500.0,0.00044109,120]
[330509999,1719538241600,-689.53,0.00044109,120]
[330510000,1719538241610,-500.0,0.00044109,120]
[330510001,1719538241619,-500.0,0.00044109,120]
[330510002,1719538241631,-500.0,0.00044109,120]
[330510003,1719538241640,-500.0,0.00044109,120]
[330510004,1719538241649,-500.0,0.00044109,120]
[330510005,1719538241659,-547.19,0.00044109,120]
[330510006,1719538241668,-500.0,0.00044109,120]
[330510007,1719538241677,-500.0,0.00044109,120]
[330510008,1719538241686,-500.0,0.00044109,120]
[330510009,1719538241696,-500.0,0.00044109,120]
[330510010,1719538241705,-500.0,0.00044109,120]
[330510011,1719538241714,-663.48,0.00044109,120]
[330510012,1719538241724,-500.0,0.00044109,120]
[330510013,1719538241733,-500.0,0.00044109,120]
[330510014,1719538241742,-500.0,0.00044109,120]
[330510015,1719538241751,-500.0,0.00044109,120]
[330510016,1719538241760,-500.0,0.00044109,120]
[330510017,1719538241769,-500.0,0.00044109,120]
[330510018,1719538241778,-500.0,0.00044109,120]
[330510019,1719538241789,-500.0,0.00044109,120]
[330510020,1719538241799,-500.0,0.00044109,120]
[330510021,1719538241808,-500.0,0.00044109,120]
[330510022,1719538241820,-500.0,0.00044109,120]
[330510023,1719538241830,-500.0,0.00044109,20]
[330510024,1719538241839,-500.0,0.00044109,120]
[330510025,1719538241849,-250.0,0.00044109,120]
[330510026,1719538241858,-500.0,0.00044109,120]
[330510027,1719538241867,-500.0,0.00044109,120]
[330510028,1719538241875,-500.0,0.00044109,120]
[330510029,1719538241886,-500.0,0.00044109,120]
[330510030,1719538241895,-522.67,0.00044109,120]
[330510031,1719538241903,-729.68,0.00044109,2]
[330510032,1719538241912,-691.53,0.00044109,120]
[330510033,1719538241921,-500.0,0.00044109,120]
[330510034,1719538241930,-840.23,0.00044109,120]
[330510035,1719538241939,-522.27,0.00044109,120]
[330510036,1719538241948,-500.0,0.00044109,120]
[330510037,1719538241956,-500.0,0.00044109,120]
[330510038,1719538241965,-500.0,0.00044109,120]
[330510039,1719538241974,-500.0,0.00044109,120]
[330510040,1719538241983,-500.0,0.00044109,120]
[330510041,1719538241991,-408.24140539,0.00044109,120]
[330510042,1719538242000,-559.07,0.00044109,120]
[330510043,1719538242009,-500.0,0.00044109,120]
[330510044,1719538242018,-500.0,0.00044109,120]
[330510045,1719538242026,-500.0,0.00044109,120]
[330510046,1719538242036,-500.0,0.00044109,120]
[330510047,1719538242045,-364.00985362,0.00044109,120]
[330510048,1719538242054,-500.0,0.00044109,120]
[330510049,1719538242066,-500.0,0.00044109,120]
[330510050,1719538242075,-500.0,0.00044109,120]
[330510051,1719538242083,-500.0,0.00044109,120]
[330510052,1719538242092,-500.0,0.00044109,120]
[330510053,1719538242102,-500.0,0.00044109,120]
[330510054,1719538242110,-500.0,0.00044109,120]
[330510055,1719538242119,-614.8,0.00044109,120]
[330510056,1719538242128,-500.0,0.00044109,120]
[330510057,1719538242137,-500.0,0.00044109,2]
[330510058,1719538242146,-500.0,0.00044109,120]
[330510059,1719538242155,-521.18594872,0.00044109,120]
[330510060,1719538242163,-744.76,0.00044109,120]
[330510061,1719538242172,-500.0,0.00044109,120]
[330510062,1719538242182,-775.98,0.00044109,120]
[330510063,1719538242191,-834.75,0.00044109,120]
[330510064,1719538242199,-500.0,0.00044109,120]
[330510065,1719538242208,-500.0,0.00044109,120]
[330510066,1719538242217,-500.0,0.00044109,120]
[330510067,1719538242226,-996.84,0.00044109,120]
[330510068,1719538242235,-620.39,0.00044109,120]
[330510069,1719538242244,-529.15219553,0.00044109,120]
[330510070,1719538242253,-883.72,0.00044109,120]
[330510071,1719538242263,-500.0,0.00044109,120]
[330510072,1719538242271,-500.0,0.00044109,120]
[330510073,1719538242281,-500.0,0.00044109,120]
[330510074,1719538242290,-500.0,0.00044109,120]
[330510075,1719538242299,-1651.08,0.00044109,120]
[330510076,1719538242308,-500.0,0.00044109,120]
[330510077,1719538242322,-500.0,0.00044109,120]
[330510078,1719538242340,-500.0,0.00044109,120]
[330510079,1719538242358,-515.45017853,0.00044109,120]
[330510080,1719538242367,-500.0,0.00044109,120]
[330510081,1719538242381,-385.84921436,0.00044109,120]
[330510082,1719538242396,-500.0,0.00044109,120]
[330510083,1719538242405,-486.73721941,0.00044109,120]
[330510084,1719538242414,-511.16634985,0.00044109,120]
[330510085,1719538242423,-640.5,0.00044109,120]
[330510086,1719538242432,-500.0,0.00044109,120]
[330510087,1719538242441,-500.0,0.00044109,30]
[330510088,1719538242450,-500.0,0.00044109,120]
[330510089,1719538242459,-1061.98,0.00044109,120]
[330510090,1719538242468,-863.1,0.00044109,120]
[330510091,1719538242476,-500.0,0.00044109,120]
[330510092,1719538242486,-500.0,0.00044109,120]
[330510093,1719538242495,-500.0,0.00044109,120]
[330510094,1719538242503,-500.0,0.00044109,120]
[330510095,1719538242513,-500.0,0.00044109,120]
[330510096,1719538242522,-500.0,0.00044109,120]
[330510097,1719538242530,-500.0,0.00044109,120]
[330510098,1719538242539,-500.0,0.00044109,120]
[330510099,1719538242552,-500.0,0.00044109,2]
[330510100,1719538242561,-421.37248084,0.00044109,120]
[330510101,1719538242571,-500.0,0.00044109,120]
[330510102,1719538242580,-500.0,0.00044109,120]
[330510103,1719538242589,-1454.77,0.00044109,120]
[330510104,1719538242598,-500.0,0.00044109,120]
[330510105,1719538242607,-500.0,0.00044109,120]
[330510106,1719538242615,-916.18,0.00044109,120]
[330510107,1719538242624,-500.0,0.00044109,120]
[330510108,1719538242635,-508.56682588,0.00044109,120]
[330510109,1719538242644,-500.0,0.00044109,120]
[330510110,1719538242653,-1417.81,0.00044109,120]
[330510111,1719538242662,-500.57,0.00044109,120]
[330510112,1719538242671,-2051.65,0.00044109,120]
[330510113,1719538242679,-575.95,0.00044109,120]
[330510114,1719538242688,-602.04,0.00044109,120]
[330510115,1719538242697,-500.0,0.00044109,120]
[330510116,1719538242706,-500.0,0.00044109,120]
[330510117,1719538242715,-500.0,0.00044109,120]
[330510118,1719538242723,-500.0,0.00044109,120]
[330510119,1719538242732,-500.0,0.00044109,120]
[330510120,1719538242741,-500.0,0.00044109,120]
[330510121,1719538242750,-500.0,0.00044109,120]
[330510122,1719538242759,-500.0,0.00044109,120]
[330510123,1719538242768,-611.19,0.00044109,120]
[330510124,1719538242776,-574.14,0.00044109,120]
[330510125,1719538242786,-500.0,0.00044109,120]
[330510126,1719538242795,-500.0,0.00044109,120]
[330510127,1719538242803,-1356.85,0.00044109,120]
[330510128,1719538242813,-756.66,0.00044109,120]
[330510129,1719538242912,-507.6777724,0.00044109,120]
[330510130,1719538242922,-500.0,0.00044109,120]
[330510132,1719538242931,-680.5,0.00044109,120]
[330510134,1719538242939,-500.0,0.00044109,120]
[330510136,1719538242948,-500.0,0.00044109,120]
[330510139,1719538242957,-550.32,0.00044109,120]
[330510140,1719538242966,-500.0,0.00044109,120]
[330510142,1719538242974,-500.0,0.00044109,120]
[330510144,1719538242983,-500.0,0.00044109,120]
[330510146,1719538242992,-500.0,0.00044109,120]
[330510148,1719538243000,-500.0,0.00044109,120]
[330510150,1719538243009,-500.0,0.00044109,120]
[330510152,1719538243018,-8075.81,0.00044109,120]
[330510154,1719538243027,-500.0,0.00044109,120]
[330510157,1719538243035,-500.0,0.00044109,120]
[330510159,1719538243045,-568.23730928,0.00044109,120]
[330510161,1719538243054,-500.0,0.00044109,120]
[330510163,1719538243064,-500.0,0.00044109,120]
[330510165,1719538243073,-500.0,0.00044109,120]
[330510166,1719538243082,-500.0,0.00044109,120]
[330510167,1719538243091,-500.0,0.00044109,120]
[330510168,1719538243100,-2249.58,0.00044109,120]
[330510169,1719538243109,-500.0,0.00044109,120]
[330510170,1719538243118,-500.0,0.00044109,120]
[330510171,1719538243128,-866.43,0.00044109,120]
[330510172,1719538243137,-692.61,0.00044109,120]
[330510173,1719538243146,-500.0,0.00044109,30]
[330510174,1719538243155,-1872.56,0.00044109,120]
[330510175,1719538243163,-599.59,0.00044109,60]
[330510176,1719538243174,-500.0,0.00044109,120]
[330510177,1719538243183,-500.0,0.00044109,120]
[330510179,1719538243193,-500.0,0.00044109,120]
[330510181,1719538243202,-500.0,0.00044109,120]
[330510182,1719538243212,-920.04,0.00044109,120]
[330510184,1719538243222,-500.0,0.00044109,120]
[330510186,1719538243231,-626.15,0.00044109,120]
[330510188,1719538243241,-638.05,0.00044109,120]
[330510190,1719538243252,-500.0,0.00044109,120]
[330510192,1719538243262,-500.0,0.00044109,120]
[330510194,1719538243271,-18686.16,0.00044109,120]
[330510196,1719538243280,-408.672925,0.00044109,120]
[330510198,1719538243289,-1448.64,0.00044109,120]
[330510200,1719538243299,-500.0,0.00044109,120]
[330510201,1719538243308,-743.74,0.00044109,120]
[330510202,1719538243317,-500.0,0.00044109,120]
[330510204,1719538243327,-610.89,0.00044109,120]
[330510205,1719538243336,-1042.61,0.00044109,120]
[330510206,1719538243345,-506.58,0.00044109,120]
[330510208,1719538243354,-500.0,0.00044109,120]
[330510210,1719538243363,-500.0,0.00044109,120]
[330510212,1719538243372,-500.0,0.00044109,120]
[330510214,1719538243381,-501.06,0.00044109,120]
[330510215,1719538243391,-782.09,0.00044109,120]
[330510216,1719538243400,-500.0,0.00044109,120]
[330510217,1719538243409,-500.0,0.00044109,120]
[330510218,1719538243418,-500.0,0.00044109,120]
[330510219,1719538243428,-737.3,0.00044109,120]
[330510220,1719538243437,-561.17466308,0.00044109,120]
[330510221,1719538243446,-500.0,0.00044109,120]
[330510222,1719538243456,-500.0,0.00044109,120]
[330510223,1719538243465,-500.0,0.00044109,120]
[330510224,1719538243474,-500.0,0.00044109,120]
[330510225,1719538243484,-500.0,0.00044109,120]
[330510226,1719538243492,-500.0,0.00044109,120]
[330510227,1719538243502,-532.25,0.00044109,120]
[330510228,1719538243511,-500.0,0.00044109,120]
[330510230,1719538243521,-500.0,0.00044109,120]
[330510231,1719538243530,-500.0,0.00044109,120]
[330510232,1719538243540,-922.9,0.00044109,120]
[330510233,1719538243553,-765.92,0.00044109,120]
[330510234,1719538243562,-3097.05,0.00044109,120]
[330510235,1719538243573,-258.77,0.00044109,7]
[330510236,1719538243582,-637.3,0.00044109,120]
[330510237,1719538243592,-500.0,0.00044109,120]
[330510238,1719538243601,-749.64,0.00044109,120]
[330510239,1719538243611,-500.0,0.00044109,120]
[330510240,1719538243620,-500.0,0.00044109,120]
[330510241,1719538243631,-500.0,0.00044109,120]
[330510242,1719538243640,-500.0,0.00044109,120]
[330510243,1719538243649,-596.06,0.00044109,120]
[330510244,1719538243659,-500.0,0.00044109,120]
[330510245,1719538243668,-662.64,0.00044109,120]
[330510246,1719538243678,-500.0,0.00044109,120]
[330510247,1719538243687,-500.0,0.00044109,14]
[330510248,1719538243696,-500.0,0.00044109,30]
[330510249,1719538243705,-500.0,0.00044109,120]
[330510250,1719538243715,-1811.58,0.00044109,120]
[330510251,1719538243725,-500.0,0.00044109,120]
[330510252,1719538243735,-500.0,0.00044109,120]
[330510253,1719538243745,-567.07,0.00044109,120]
[330510254,1719538243754,-500.0,0.00044109,2]
[330510255,1719538243763,-287.13540987,0.00044109,120]
[330510256,1719538243772,-500.0,0.00044109,120]
[330510257,1719538243781,-464.69298186,0.00044109,120]
[330510258,1719538243790,-1653.89,0.00044109,120]
[330510259,1719538243799,-500.0,0.00044109,2]
[330510260,1719538243808,-500.0,0.00044109,120]
[330510261,1719538243818,-500.0,0.00044109,120]
[330510262,1719538243827,-500.0,0.00044109,120]
[330510263,1719538243836,-1326.8,0.00044109,120]
[330510264,1719538243846,-500.0,0.00044109,120]
[330510265,1719538243855,-913.88,0.00044109,120]
[330510266,1719538243864,-526.77962575,0.00044109,120]
[330510267,1719538243874,-508.01289711,0.00044109,2]
[330510268,1719538243883,-500.0,0.00044109,120]
[330510269,1719538243892,-3372.85,0.00044109,120]
[330510270,1719538243901,-500.0,0.00044109,120]
[330510271,1719538243911,-17629.65,0.00044109,120]
[330510272,1719538243920,-500.0,0.00044109,120]
[330510273,1719538243929,-500.0,0.00044109,120]
[330510274,1719538243939,-500.0,0.00044109,120]
[330510275,1719538243948,-500.0,0.00044109,120]
[330510276,1719538243957,-500.0,0.00044109,120]
[330510277,1719538243966,-1025.49,0.00044109,120]
[330510278,1719538243975,-500.0,0.00044109,120]
[330510279,1719538243985,-500.0,0.00044109,120]
[330510280,1719538243994,-500.0,0.00044109,120]
[330510281,1719538244004,-329.32960669,0.00044109,120]
[330510282,1719538244013,-500.0,0.00044109,120]
[330510283,1719538244022,-500.0,0.00044109,120]
[330510284,1719538244032,-1070.33,0.00044109,120]
[330510285,1719538244043,-500.0,0.00044109,120]
[330510286,1719538244053,-500.0,0.00044109,120]
[330510287,1719538244062,-571.11,0.00044109,120]
[330510288,1719538244073,-500.0,0.00044109,120]
[330510289,1719538244082,-3459.07,0.00044109,120]
[330510290,1719538244091,-500.0,0.00044109,120]
[330510291,1719538244101,-1359.98,0.00044109,120]
[330510292,1719538244110,-500.0,0.00044109,120]
[330510293,1719538244119,-500.0,0.00044109,120]
[330510294,1719538244128,-500.0,0.00044109,120]
[330510295,1719538244138,-305.80615819,0.00044109,120]
[330510296,1719538244432,-194.19384181,0.00044109,120]
[330510297,1719538244443,-117.7524674,0.00044109,120]
[330510298,1719538244905,-184.12665412,0.00035581,4]
[330510299,1719538244914,-229.633,0.0004075,2]
[330510300,1719538244924,-651.3875326,0.00044109,120]
[330510301,1719538244934,-537.76,0.00044109,120]
[330510302,1719538244944,-500.0,0.00044109,120]
[330510303,1719538244953,-653.28,0.00044109,120]
[330510304,1719538244963,-645.0096644,0.00044109,120]
[330510305,1719538244974,-4256.57208159,0.00044109,120]
[330510306,1719538244986,-1511.37825401,0.00044109,120]
[330510307,1719538244996,-692.23,0.00044109,120]
[330510308,1719538245005,-500.0,0.00044109,120]
[330510309,1719538245015,-3357.1,0.00044109,120]
[330510310,1719538245025,-500.0,0.00044109,120]
[330510311,1719538245035,-526.30544451,0.00044109,120]
[330510312,1719538245044,-500.0,0.00044109,120]
[330510313,1719538245054,-500.0,0.00044109,120]
[330510314,1719538245064,-834.41,0.00044109,120]
[330510315,1719538245074,-886.93,0.00044109,120]
[330510316,1719538245083,-856.33,0.00044109,120]
[330510317,1719538245094,-591.5,0.00044109,120]
[330510318,1719538245104,-1430.54,0.00044109,120]
[330510319,1719538245113,-1786.08,0.00044109,120]
[330510320,1719538245123,-500.0,0.00044109,120]
[330510321,1719538245132,-16676.59,0.00044109,120]
[330510322,1719538245142,-2051.0298579,0.00044109,120]
[330510323,1719538245316,-341.4864634,0.00044109,120]
[330510329,1719538246786,-411.6114014,0.00038356,2]
[330510330,1719538246796,-10349.41459615,0.00044109,120]
[330510345,1719538256230,166.628717,0.00021096,2]
[330510346,1719538259901,203.013,0.00029069,30]
[330510347,1719538263745,2637.10010538,0.00023882,2]
[330510348,1719538263765,1935.79224594,0.00023882,2]
[330510349,1719538263784,64.62126618,0.00023882,2]
[330510350,1719538266293,129.40808895,0.00023882,2]
[330510351,1719538266315,2005.1582879,0.00023882,2]
[330510352,1719538276378,264.61531793,0.00023882,2]
[330510353,1719538277707,498.40134809,0.00023882,2]
[330510354,1719538277793,793.6986404,0.00023882,2]
[330510355,1719538282216,200.61503685,0.00023882,2]
[330510356,1719538288053,678.194666,0.00023882,2]
[330510357,1719538294519,19.70426153,0.00023882,2]
[330510358,1719538294540,135.11769322,0.00023882,2]
[330510360,1719538309694,155.00973231,0.00023882,2]
[330510381,1719538641130,3293.37687449,0.0001,2]
[330510390,1719538739834,155.109783,0.00012121,2]